[Event "Titled Tuesday Blitz August 08 Late 2023"]
[White "brm72"]
[Black "Goltsev, Dmitry"]
[BlackFideId "24176710"]
[WhiteElo "2536"]
[BlackElo "2622"]
[Result "1/2-1/2"]
[Round "11"]
[TimeControl "180+1"]
[Date "2023.08.08"]
[WhiteClock "0:00:07"]
[BlackClock "0:00:14"]
[Board "42"]

1. e4 {[%clk 0:02:29]}  e6 {[%clk 0:02:58]} 2. d4 {[%clk 0:02:29]}  d5 {[%clk 0:02:58]} 3. e5 {[%clk 0:02:30]}  c5 {[%clk 0:02:58]} 4. c3 {[%clk 0:02:30]}  Nc6 {[%clk 0:02:59]} 5. Nf3 {[%clk 0:02:31]}  Nge7 {[%clk 0:02:59]} 6. Na3 {[%clk 0:02:30]}  Nf5 {[%clk 0:03:00]} 7. Nc2 {[%clk 0:02:30]}  h5 {[%clk 0:03:00]} 8. Bd3 {[%clk 0:02:29]}  Be7 {[%clk 0:03:00]} 9. O-O {[%clk 0:02:29]}  g5 {[%clk 0:03:00]} 10. dxc5 {[%clk 0:02:19]}  g4 {[%clk 0:02:58]} 11. Nfd4 {[%clk 0:02:19]}  Bxc5 {[%clk 0:02:55]} 12. Nxf5 {[%clk 0:02:14]}  exf5 {[%clk 0:02:56]} 13. Be3 {[%clk 0:02:12]}  Be7 {[%clk 0:02:54]} 14. Bf4 {[%clk 0:02:09]}  Be6 {[%clk 0:02:54]} 15. Nd4 {[%clk 0:02:09]}  Nxd4 {[%clk 0:02:47]} 16. cxd4 {[%clk 0:02:10]}  h4 {[%clk 0:02:48]} 17. Rc1 {[%clk 0:01:59]}  Kf8 {[%clk 0:02:44]} 18. f3 {[%clk 0:01:53]}  g3 {[%clk 0:02:41]} 19. hxg3 {[%clk 0:01:53]}  hxg3 {[%clk 0:02:42]} 20. Bxg3 {[%clk 0:01:51]}  Bg5 {[%clk 0:02:33]} 21. f4 {[%clk 0:01:51]}  Be7 {[%clk 0:02:28]} 22. Kf2 {[%clk 0:01:46]}  Kg7 {[%clk 0:02:28]} 23. Rh1 {[%clk 0:01:46]}  Qb6 {[%clk 0:02:27]} 24. Ke3 {[%clk 0:01:32]}  Qxb2 {[%clk 0:02:24]} 25. Rb1 {[%clk 0:01:26]}  Qxa2 {[%clk 0:02:21]} 26. Rxb7 {[%clk 0:01:25]}  Ba3 {[%clk 0:01:59]} 27. Bh4 {[%clk 0:01:16]}  Rh6 {[%clk 0:00:44]} 28. Bg5 {[%clk 0:00:49]}  Rah8 {[%clk 0:00:10]} 29. Bxh6+ {[%clk 0:00:47]}  Rxh6 {[%clk 0:00:10]} 30. Rxh6 {[%clk 0:00:44]}  Kxh6 {[%clk 0:00:11]} 31. Rb1 {[%clk 0:00:33]}  a5 {[%clk 0:00:08]} 32. Qf3 {[%clk 0:00:20]}  Bb4 {[%clk 0:00:07]} 33. Rd1 {[%clk 0:00:17]}  Kg7 {[%clk 0:00:06]} 34. Qg3+ {[%clk 0:00:16]}  Kf8 {[%clk 0:00:06]} 35. Qf2 {[%clk 0:00:15]}  Qb3 {[%clk 0:00:05]} 36. Qc2 {[%clk 0:00:15]}  Qa3 {[%clk 0:00:05]} 37. Rb1 {[%clk 0:00:14]}  Kg7 {[%clk 0:00:04]} 38. Qb3 {[%clk 0:00:13]}  Qxb3 {[%clk 0:00:03]} 39. Rxb3 {[%clk 0:00:14]}  Bd7 {[%clk 0:00:03]} 40. Rb1 {[%clk 0:00:13]}  Kg6 {[%clk 0:00:03]} 41. g4 {[%clk 0:00:12]}  Bc3 {[%clk 0:00:03]} 42. Rg1 {[%clk 0:00:12]}  a4 {[%clk 0:00:02]} 43. gxf5+ {[%clk 0:00:12]}  Kh6 {[%clk 0:00:02]} 44. f6 {[%clk 0:00:10]}  Kh5 {[%clk 0:00:03]} 45. f5 {[%clk 0:00:09]}  Kh4 {[%clk 0:00:03]} 46. Bc2 {[%clk 0:00:07]}  a3 {[%clk 0:00:03]} 47. Kd3 {[%clk 0:00:08]}  Bb2 {[%clk 0:00:02]} 48. Bb3 {[%clk 0:00:07]}  Bxf5+ {[%clk 0:00:02]} 49. Kd2 {[%clk 0:00:07]}  Bxd4 {[%clk 0:00:02]} 50. Rg7 {[%clk 0:00:06]}  Bxe5 {[%clk 0:00:02]} 51. Rxf7 {[%clk 0:00:06]}  Be4 {[%clk 0:00:02]} 52. Rf8 {[%clk 0:00:05]}  Bg6 {[%clk 0:00:02]} 53. Bxd5 {[%clk 0:00:03]}  Bf4+ {[%clk 0:00:01]} 54. Ke2 {[%clk 0:00:02]}  Kg5 {[%clk 0:00:02]} 55. f7 {[%clk 0:00:03]}  Kf6 {[%clk 0:00:02]} 56. Rg8 {[%clk 0:00:03]}  Bxf7 {[%clk 0:00:02]} 57. Rf8 {[%clk 0:00:04]}  Bd6 {[%clk 0:00:01]} 58. Rxf7+ {[%clk 0:00:04]}  Ke5 {[%clk 0:00:02]} 59. Ba2 {[%clk 0:00:04]}  Kd4 {[%clk 0:00:02]} 60. Kd1 {[%clk 0:00:04]}  Kc3 {[%clk 0:00:03]} 61. Kc1 {[%clk 0:00:04]}  Kd4 {[%clk 0:00:03]} 62. Kb1 {[%clk 0:00:04]}  Kc5 {[%clk 0:00:04]} 63. Kc2 {[%clk 0:00:05]}  Kd4 {[%clk 0:00:04]} 64. Kb3 {[%clk 0:00:05]}  Ke5 {[%clk 0:00:05]} 65. Rd7 {[%clk 0:00:06]}  Ke6 {[%clk 0:00:05]} 66. Rb7 {[%clk 0:00:06]}  Kd5 {[%clk 0:00:05]} 67. Ka4+ {[%clk 0:00:06]}  Kc6 {[%clk 0:00:06]} 68. Rb5 {[%clk 0:00:06]}  Kd7 {[%clk 0:00:06]} 69. Rh5 {[%clk 0:00:07]}  Kc6 {[%clk 0:00:07]} 70. Kb3 {[%clk 0:00:07]}  Kd7 {[%clk 0:00:07]} 71. Kc4 {[%clk 0:00:08]}  Ke6 {[%clk 0:00:08]} 72. Kb5+ {[%clk 0:00:08]}  Kf6 {[%clk 0:00:08]} 73. Kc6 {[%clk 0:00:08]}  Be5 {[%clk 0:00:08]} 74. Kd5 {[%clk 0:00:08]}  Bb2 {[%clk 0:00:09]} 75. Rh3 {[%clk 0:00:08]}  Kf5 {[%clk 0:00:09]} 76. Rf3+ {[%clk 0:00:07]}  Kg4 {[%clk 0:00:09]} 77. Ke4 {[%clk 0:00:08]}  Kg5 {[%clk 0:00:09]} 78. Rf7 {[%clk 0:00:08]}  Kg6 {[%clk 0:00:09]} 79. Kf4 {[%clk 0:00:07]}  Bc1+ {[%clk 0:00:09]} 80. Kg4 {[%clk 0:00:07]}  Bb2 {[%clk 0:00:10]} 81. Rf3 {[%clk 0:00:07]}  Bc1 {[%clk 0:00:09]} 82. Bf7+ {[%clk 0:00:07]}  Kg7 {[%clk 0:00:09]} 83. Kh5 {[%clk 0:00:07]}  Bb2 {[%clk 0:00:09]} 84. Rf5 {[%clk 0:00:07]}  Kf8 {[%clk 0:00:09]} 85. Bb3+ {[%clk 0:00:07]}  Ke7 {[%clk 0:00:10]} 86. Kg6 {[%clk 0:00:07]}  Kd6 {[%clk 0:00:11]} 87. Kf7 {[%clk 0:00:07]}  Bc1 {[%clk 0:00:10]} 88. Ba2 {[%clk 0:00:08]}  Bb2 {[%clk 0:00:11]} 89. Rd5+ {[%clk 0:00:09]}  Kc6 {[%clk 0:00:11]} 90. Ke6 {[%clk 0:00:10]}  Bc1 {[%clk 0:00:11]} 91. Rd3 {[%clk 0:00:10]}  Bb2 {[%clk 0:00:11]} 92. Rd1 {[%clk 0:00:10]}  Kc5 {[%clk 0:00:11]} 93. Kf5 {[%clk 0:00:09]}  Bc3 {[%clk 0:00:11]} 94. Ke4 {[%clk 0:00:10]}  Bb2 {[%clk 0:00:12]} 95. Kd3 {[%clk 0:00:10]}  Kd6 {[%clk 0:00:12]} 96. Ke4+ {[%clk 0:00:10]}  Kc5 {[%clk 0:00:12]} 97. Rd5+ {[%clk 0:00:10]}  Kc6 {[%clk 0:00:12]} 98. Kd3 {[%clk 0:00:10]}  Bc1 {[%clk 0:00:12]} 99. Ra5 {[%clk 0:00:09]}  Bb2 {[%clk 0:00:13]} 100. Ra4 {[%clk 0:00:09]}  Kc5 {[%clk 0:00:13]} 101. Rc4+ {[%clk 0:00:09]}  Kd6 {[%clk 0:00:14]} 102. Ke4 {[%clk 0:00:09]}  Ba1 {[%clk 0:00:13]} 103. Ra4 {[%clk 0:00:06]}  Bb2 {[%clk 0:00:14]} 104. Ra5 {[%clk 0:00:06]}  Kc6 {[%clk 0:00:14]} 105. Rh5 {[%clk 0:00:07]}  Kd6 {[%clk 0:00:14]} 106. Rh6+ {[%clk 0:00:07]}  Kc5 {[%clk 0:00:15]} 107. Kd3 {[%clk 0:00:07]}  Bc1 {[%clk 0:00:14]} 108. Rh5+ {[%clk 0:00:07]} 1/2-1/2


[Site "https://www.chess.com"]

[Event "Titled Tuesday Blitz August 08 Late 2023"]
[White "Erzhanov, Arman"]
[Black "chess123456s"]
[WhiteFideId "4138821"]
[WhiteElo "2599"]
[BlackElo "2523"]
[Result "1-0"]
[Round "11"]
[TimeControl "180+1"]
[Date "2023.08.08"]
[WhiteClock "0:02:10"]
[BlackClock "0:01:54"]
[Board "44"]

1. e4 {[%clk 0:02:59]}  e5 {[%clk 0:02:55]} 2. Nf3 {[%clk 0:02:59]}  Nc6 {[%clk 0:02:55]} 3. Bb5 {[%clk 0:02:59]}  a6 {[%clk 0:02:54]} 4. Bxc6 {[%clk 0:02:59]}  dxc6 {[%clk 0:02:53]} 5. Nc3 {[%clk 0:02:59]}  f6 {[%clk 0:02:50]} 6. d4 {[%clk 0:02:59]}  exd4 {[%clk 0:02:50]} 7. Nxd4 {[%clk 0:03:00]}  c5 {[%clk 0:02:50]} 8. Nde2 {[%clk 0:03:00]}  Qxd1+ {[%clk 0:02:51]} 9. Nxd1 {[%clk 0:03:01]}  Ne7 {[%clk 0:02:50]} 10. Bf4 {[%clk 0:03:01]}  c6 {[%clk 0:02:47]} 11. Ne3 {[%clk 0:03:01]}  Ng6 {[%clk 0:02:47]} 12. Bg3 {[%clk 0:03:01]}  h5 {[%clk 0:02:46]} 13. Nc4 {[%clk 0:02:57]}  Be6 {[%clk 0:02:44]} 14. Nb6 {[%clk 0:02:51]}  Rd8 {[%clk 0:02:34]} 15. Bc7 {[%clk 0:02:50]}  Rd4 {[%clk 0:02:32]} 16. Nxd4 {[%clk 0:02:49]}  cxd4 {[%clk 0:02:33]} 17. O-O-O {[%clk 0:02:45]}  Bc5 {[%clk 0:02:25]} 18. Na4 {[%clk 0:02:40]}  Ba7 {[%clk 0:02:25]} 19. Bb6 {[%clk 0:02:41]}  Bxb6 {[%clk 0:02:24]} 20. Nxb6 {[%clk 0:02:41]}  c5 {[%clk 0:02:24]} 21. Na4 {[%clk 0:02:34]}  c4 {[%clk 0:02:16]} 22. Rxd4 {[%clk 0:02:33]}  b5 {[%clk 0:02:16]} 23. Nc5 {[%clk 0:02:33]}  Bf7 {[%clk 0:02:15]} 24. Nxa6 {[%clk 0:02:32]}  O-O {[%clk 0:02:14]} 25. Nc7 {[%clk 0:02:30]}  Ne5 {[%clk 0:02:13]} 26. Nxb5 {[%clk 0:02:26]}  Ra8 {[%clk 0:02:13]} 27. a3 {[%clk 0:02:26]}  Nc6 {[%clk 0:02:12]} 28. Rd7 {[%clk 0:02:22]}  Ne5 {[%clk 0:02:11]} 29. Rc7 {[%clk 0:02:22]}  Ng4 {[%clk 0:02:09]} 30. f3 {[%clk 0:02:19]}  Ne3 {[%clk 0:02:08]} 31. g3 {[%clk 0:02:14]}  Rd8 {[%clk 0:02:03]} 32. Re1 {[%clk 0:02:11]}  Ng2 {[%clk 0:01:54]} 33. Re2 {[%clk 0:02:10]} 1-0


[Site "https://www.chess.com"]

[Event "Titled Tuesday Blitz August 08 Late 2023"]
[White "Graif, William"]
[Black "Reprintsev, Alexander"]
[WhiteFideId "2609835"]
[BlackFideId "14100541"]
[WhiteElo "2561"]
[BlackElo "2505"]
[Result "1-0"]
[Round "11"]
[TimeControl "180+1"]
[Date "2023.08.08"]
[WhiteClock "0:00:45"]
[BlackClock "0:02:05"]
[Board "47"]

1. e4 {[%clk 0:03:00]}  d5 {[%clk 0:02:59]} 2. d4 {[%clk 0:02:58]}  dxe4 {[%clk 0:02:58]} 3. Nc3 {[%clk 0:02:58]}  e5 {[%clk 0:02:57]} 4. Qh5 {[%clk 0:02:52]}  Qxd4 {[%clk 0:02:55]} 5. Be3 {[%clk 0:02:48]}  Qd6 {[%clk 0:02:54]} 6. Nxe4 {[%clk 0:02:07]}  Qe7 {[%clk 0:02:51]} 7. O-O-O {[%clk 0:01:46]}  Nf6 {[%clk 0:02:50]} 8. Nxf6+ {[%clk 0:01:40]}  gxf6 {[%clk 0:02:49]} 9. Bc4 {[%clk 0:01:21]}  Nc6 {[%clk 0:02:46]} 10. Bc5 {[%clk 0:01:17]}  Bg4 {[%clk 0:02:37]} 11. Qxg4 {[%clk 0:01:11]}  Bh6+ {[%clk 0:02:34]} 12. Kb1 {[%clk 0:00:52]}  f5 {[%clk 0:02:05]} 13. Qxf5 {[%clk 0:00:45]} 1-0


[Site "https://www.chess.com"]

[Event "Titled Tuesday Blitz August 08 Late 2023"]
[White "Delorme, Axel"]
[Black "Fiorito, Joaquin"]
[WhiteFideId "632023"]
[BlackFideId "180173"]
[WhiteElo "2490"]
[BlackElo "2674"]
[Result "1-0"]
[Round "11"]
[TimeControl "180+1"]
[Date "2023.08.08"]
[WhiteClock "0:00:14"]
[BlackClock "0:00:14"]
[Board "49"]

1. e4 {[%clk 0:03:00]}  c5 {[%clk 0:02:59]} 2. Nf3 {[%clk 0:03:00]}  d6 {[%clk 0:03:00]} 3. Bb5+ {[%clk 0:03:00]}  Nd7 {[%clk 0:03:00]} 4. Ba4 {[%clk 0:03:00]}  Nf6 {[%clk 0:03:00]} 5. O-O {[%clk 0:03:01]}  g6 {[%clk 0:03:00]} 6. Re1 {[%clk 0:03:00]}  Bg7 {[%clk 0:03:00]} 7. c3 {[%clk 0:03:00]}  O-O {[%clk 0:03:00]} 8. d4 {[%clk 0:03:00]}  cxd4 {[%clk 0:03:01]} 9. cxd4 {[%clk 0:03:01]}  a6 {[%clk 0:02:57]} 10. Nc3 {[%clk 0:03:00]}  b5 {[%clk 0:02:57]} 11. Bb3 {[%clk 0:03:00]}  Bb7 {[%clk 0:02:58]} 12. a3 {[%clk 0:02:55]}  Rc8 {[%clk 0:02:55]} 13. h3 {[%clk 0:02:47]}  Nb6 {[%clk 0:02:55]} 14. e5 {[%clk 0:02:41]}  dxe5 {[%clk 0:02:52]} 15. dxe5 {[%clk 0:02:42]}  Nfd5 {[%clk 0:02:47]} 16. Nxd5 {[%clk 0:02:33]}  Bxd5 {[%clk 0:02:47]} 17. Be3 {[%clk 0:02:17]}  Bxb3 {[%clk 0:02:45]} 18. Qxb3 {[%clk 0:02:18]}  Nc4 {[%clk 0:02:45]} 19. Rad1 {[%clk 0:02:09]}  Qc7 {[%clk 0:02:45]} 20. Bd4 {[%clk 0:02:02]}  Rfd8 {[%clk 0:02:44]} 21. e6 {[%clk 0:01:59]}  Bxd4 {[%clk 0:02:38]} 22. Rxd4 {[%clk 0:01:52]}  Rxd4 {[%clk 0:02:31]} 23. exf7+ {[%clk 0:01:49]}  Kxf7 {[%clk 0:02:31]} 24. Nxd4 {[%clk 0:01:47]}  Qf4 {[%clk 0:02:27]} 25. Nf3 {[%clk 0:01:37]}  Kf8 {[%clk 0:02:13]} 26. a4 {[%clk 0:01:14]}  Nd6 {[%clk 0:01:57]} 27. axb5 {[%clk 0:01:03]}  axb5 {[%clk 0:01:57]} 28. g3 {[%clk 0:00:44]}  Qf7 {[%clk 0:01:47]} 29. Qe3 {[%clk 0:00:39]}  Nf5 {[%clk 0:01:41]} 30. Qe5 {[%clk 0:00:31]}  Qf6 {[%clk 0:01:33]} 31. Qxb5 {[%clk 0:00:29]}  Rd8 {[%clk 0:01:20]} 32. Qe5 {[%clk 0:00:26]}  Kf7 {[%clk 0:00:51]} 33. g4 {[%clk 0:00:23]}  Nd6 {[%clk 0:00:43]} 34. Ng5+ {[%clk 0:00:22]}  Kg8 {[%clk 0:00:37]} 35. Qxe7 {[%clk 0:00:17]}  Qxe7 {[%clk 0:00:37]} 36. Rxe7 {[%clk 0:00:17]}  h6 {[%clk 0:00:30]} 37. Ne6 {[%clk 0:00:15]}  Rb8 {[%clk 0:00:26]} 38. Rg7+ {[%clk 0:00:16]}  Kh8 {[%clk 0:00:26]} 39. Rxg6 {[%clk 0:00:16]}  Nf7 {[%clk 0:00:23]} 40. Rf6 {[%clk 0:00:11]}  Kg8 {[%clk 0:00:24]} 41. h4 {[%clk 0:00:10]}  Rxb2 {[%clk 0:00:20]} 42. g5 {[%clk 0:00:10]}  hxg5 {[%clk 0:00:20]} 43. hxg5 {[%clk 0:00:11]}  Rb6 {[%clk 0:00:18]} 44. g6 {[%clk 0:00:10]}  Rb1+ {[%clk 0:00:07]} 45. Kg2 {[%clk 0:00:09]}  Rb7 {[%clk 0:00:07]} 46. Rxf7 {[%clk 0:00:08]}  Rb8 {[%clk 0:00:06]} 47. Rf8+ {[%clk 0:00:07]}  Rxf8 {[%clk 0:00:06]} 48. Nxf8 {[%clk 0:00:08]}  Kxf8 {[%clk 0:00:06]} 49. f4 {[%clk 0:00:09]}  Kg7 {[%clk 0:00:07]} 50. f5 {[%clk 0:00:09]}  Kf6 {[%clk 0:00:07]} 51. Kf3 {[%clk 0:00:10]}  Kxf5 {[%clk 0:00:07]} 52. g7 {[%clk 0:00:10]}  Kg6 {[%clk 0:00:08]} 53. g8=Q+ {[%clk 0:00:11]}  Kf6 {[%clk 0:00:09]} 54. Qd5 {[%clk 0:00:12]}  Ke7 {[%clk 0:00:09]} 55. Qc6 {[%clk 0:00:11]}  Kd8 {[%clk 0:00:10]} 56. Qb7 {[%clk 0:00:11]}  Ke8 {[%clk 0:00:10]} 57. Ke4 {[%clk 0:00:12]}  Kf8 {[%clk 0:00:11]} 58. Ke5 {[%clk 0:00:13]}  Kg8 {[%clk 0:00:12]} 59. Ke6 {[%clk 0:00:14]}  Kh8 {[%clk 0:00:13]} 60. Kf6 {[%clk 0:00:15]}  Kg8 {[%clk 0:00:14]} 61. Qg7# {[%clk 0:00:14]} 1-0


[Site "https://www.chess.com"]

[Event "Titled Tuesday Blitz August 08 Late 2023"]
[White "Vovk, Orest"]
[Black "Eugene, Floryan"]
[WhiteFideId "14113490"]
[BlackFideId "20694784"]
[WhiteElo "2473"]
[BlackElo "2643"]
[Result "1-0"]
[Round "11"]
[TimeControl "180+1"]
[Date "2023.08.08"]
[WhiteClock "0:00:05"]
[BlackClock "0:00:05"]
[Board "50"]

1. e4 {[%clk 0:02:59]}  c5 {[%clk 0:03:00]} 2. c3 {[%clk 0:02:53]}  d5 {[%clk 0:03:00]} 3. exd5 {[%clk 0:02:53]}  Qxd5 {[%clk 0:03:00]} 4. d4 {[%clk 0:02:53]}  Nc6 {[%clk 0:03:01]} 5. dxc5 {[%clk 0:02:53]}  Qxd1+ {[%clk 0:02:54]} 6. Kxd1 {[%clk 0:02:53]}  Bf5 {[%clk 0:02:26]} 7. Be3 {[%clk 0:02:48]}  O-O-O+ {[%clk 0:02:23]} 8. Nd2 {[%clk 0:02:35]}  Nf6 {[%clk 0:02:16]} 9. Nf3 {[%clk 0:02:28]}  e6 {[%clk 0:02:10]} 10. Bb5 {[%clk 0:02:27]}  Nd5 {[%clk 0:02:07]} 11. Bxc6 {[%clk 0:02:26]}  Nxe3+ {[%clk 0:02:05]} 12. fxe3 {[%clk 0:02:26]}  bxc6 {[%clk 0:02:06]} 13. Ke2 {[%clk 0:02:24]}  Bxc5 {[%clk 0:02:05]} 14. e4 {[%clk 0:02:20]}  Bg4 {[%clk 0:01:55]} 15. Nb3 {[%clk 0:01:54]}  Bb6 {[%clk 0:01:49]} 16. h3 {[%clk 0:01:48]}  Bh5 {[%clk 0:01:49]} 17. Rhd1 {[%clk 0:01:45]}  f6 {[%clk 0:01:47]} 18. Rxd8+ {[%clk 0:01:41]}  Rxd8 {[%clk 0:01:47]} 19. Rd1 {[%clk 0:01:41]}  e5 {[%clk 0:01:45]} 20. Rxd8+ {[%clk 0:01:40]}  Kxd8 {[%clk 0:01:46]} 21. g4 {[%clk 0:01:38]}  Bf7 {[%clk 0:01:44]} 22. Kd3 {[%clk 0:01:36]}  h5 {[%clk 0:01:30]} 23. Nbd2 {[%clk 0:01:26]}  hxg4 {[%clk 0:01:18]} 24. hxg4 {[%clk 0:01:26]}  g5 {[%clk 0:01:16]} 25. Nc4 {[%clk 0:01:22]}  Be6 {[%clk 0:01:06]} 26. Nxb6 {[%clk 0:01:21]}  axb6 {[%clk 0:01:07]} 27. Nh2 {[%clk 0:01:21]}  Bxa2 {[%clk 0:01:07]} 28. Nf1 {[%clk 0:01:16]}  b5 {[%clk 0:01:04]} 29. Ke3 {[%clk 0:00:56]}  Bc4 {[%clk 0:01:01]} 30. Nd2 {[%clk 0:00:51]}  Be6 {[%clk 0:00:59]} 31. Kf3 {[%clk 0:00:51]}  Kd7 {[%clk 0:00:39]} 32. b4 {[%clk 0:00:50]}  Ba2 {[%clk 0:00:36]} 33. Nf1 {[%clk 0:00:49]}  Bb3 {[%clk 0:00:33]} 34. Ne3 {[%clk 0:00:48]}  Ke6 {[%clk 0:00:30]} 35. Ke2 {[%clk 0:00:46]}  Kf7 {[%clk 0:00:23]} 36. Kd3 {[%clk 0:00:42]}  Be6 {[%clk 0:00:20]} 37. Kd2 {[%clk 0:00:30]}  Ba2 {[%clk 0:00:19]} 38. Ke2 {[%clk 0:00:29]}  Bb1 {[%clk 0:00:18]} 39. Kf3 {[%clk 0:00:27]}  Bd3 {[%clk 0:00:18]} 40. Nf5 {[%clk 0:00:27]}  Bc2 {[%clk 0:00:15]} 41. Nd6+ {[%clk 0:00:24]}  Ke7 {[%clk 0:00:14]} 42. Nb7 {[%clk 0:00:24]}  Bb3 {[%clk 0:00:11]} 43. Na5 {[%clk 0:00:20]}  Bd1+ {[%clk 0:00:12]} 44. Kg3 {[%clk 0:00:20]}  Kd7 {[%clk 0:00:11]} 45. Nb7 {[%clk 0:00:20]}  Bc2 {[%clk 0:00:11]} 46. Kf2 {[%clk 0:00:18]}  Ke7 {[%clk 0:00:10]} 47. Nc5 {[%clk 0:00:18]}  Bd1 {[%clk 0:00:10]} 48. Kg3 {[%clk 0:00:18]}  Kd6 {[%clk 0:00:10]} 49. Kh3 {[%clk 0:00:16]}  Be2 {[%clk 0:00:09]} 50. Kg3 {[%clk 0:00:16]}  Bc4 {[%clk 0:00:09]} 51. Nb7+ {[%clk 0:00:16]}  Kc7 {[%clk 0:00:09]} 52. Nc5 {[%clk 0:00:15]}  Bf7 {[%clk 0:00:09]} 53. Kf3 {[%clk 0:00:15]}  Kd6 {[%clk 0:00:08]} 54. Ke3 {[%clk 0:00:15]}  Ba2 {[%clk 0:00:08]} 55. Kf2 {[%clk 0:00:13]}  Bb1 {[%clk 0:00:08]} 56. Kf3 {[%clk 0:00:13]}  Ke7 {[%clk 0:00:09]} 57. Nb7 {[%clk 0:00:12]}  Kf7 {[%clk 0:00:06]} 58. Na5 {[%clk 0:00:11]}  f5 {[%clk 0:00:05]} 59. exf5 {[%clk 0:00:09]}  e4+ {[%clk 0:00:02]} 60. Ke3 {[%clk 0:00:09]}  Bc2 {[%clk 0:00:03]} 61. Nxc6 {[%clk 0:00:08]}  Bd1 {[%clk 0:00:04]} 62. Kxe4 {[%clk 0:00:08]}  Kf6 {[%clk 0:00:04]} 63. Ne5 {[%clk 0:00:08]}  Bc2+ {[%clk 0:00:04]} 64. Kd4 {[%clk 0:00:08]}  Bb3 {[%clk 0:00:05]} 65. Nf3 {[%clk 0:00:06]}  Bd1 {[%clk 0:00:05]} 66. Ke3 {[%clk 0:00:06]}  Bb3 {[%clk 0:00:04]} 67. Nd2 {[%clk 0:00:06]}  Bd1 {[%clk 0:00:04]} 68. Ne4+ {[%clk 0:00:06]}  Ke5 {[%clk 0:00:04]} 69. Nf2 {[%clk 0:00:05]}  Bb3 {[%clk 0:00:04]} 70. Kd2 {[%clk 0:00:05]}  Bc4 {[%clk 0:00:04]} 71. Ke3 {[%clk 0:00:05]}  Bb3 {[%clk 0:00:04]} 72. Ne4 {[%clk 0:00:05]}  Bd1 {[%clk 0:00:04]} 73. f6 {[%clk 0:00:06]}  Ke6 {[%clk 0:00:04]} 74. Nxg5+ {[%clk 0:00:05]}  Kxf6 {[%clk 0:00:05]} 75. Kf4 {[%clk 0:00:06]}  Kg6 {[%clk 0:00:05]} 76. Nf3 {[%clk 0:00:06]}  Bb3 {[%clk 0:00:05]} 77. Nd4 {[%clk 0:00:06]}  Bc4 {[%clk 0:00:05]} 78. Ke5 {[%clk 0:00:06]}  Bd3 {[%clk 0:00:06]} 79. Kd6 {[%clk 0:00:06]}  Kg5 {[%clk 0:00:06]} 80. Kc5 {[%clk 0:00:06]}  Kxg4 {[%clk 0:00:06]} 81. Nxb5 {[%clk 0:00:07]}  Kf5 {[%clk 0:00:06]} 82. Nd6+ {[%clk 0:00:07]}  Ke6 {[%clk 0:00:07]} 83. c4 {[%clk 0:00:07]}  Kd7 {[%clk 0:00:07]} 84. b5 {[%clk 0:00:08]}  Kc7 {[%clk 0:00:07]} 85. Nf7 {[%clk 0:00:07]}  Be4 {[%clk 0:00:07]} 86. Ne5 {[%clk 0:00:07]}  Bf3 {[%clk 0:00:06]} 87. Nf7 {[%clk 0:00:07]}  Kb7 {[%clk 0:00:06]} 88. Nd6+ {[%clk 0:00:06]}  Kc7 {[%clk 0:00:06]} 89. b6+ {[%clk 0:00:07]}  Kb8 {[%clk 0:00:07]} 90. Kb4 {[%clk 0:00:05]}  Bc6 {[%clk 0:00:06]} 91. c5 {[%clk 0:00:05]}  Ka8 {[%clk 0:00:06]} 92. Kc3 {[%clk 0:00:06]}  Kb8 {[%clk 0:00:07]} 93. Kd4 {[%clk 0:00:07]}  Ka8 {[%clk 0:00:07]} 94. Ke5 {[%clk 0:00:08]}  Kb8 {[%clk 0:00:08]} 95. Kf6 {[%clk 0:00:09]}  Ka8 {[%clk 0:00:09]} 96. Ke7 {[%clk 0:00:10]}  Kb8 {[%clk 0:00:09]} 97. Kd8 {[%clk 0:00:10]}  Bd5 {[%clk 0:00:09]} 98. Nf5 {[%clk 0:00:09]}  Bc6 {[%clk 0:00:09]} 99. Ne7 {[%clk 0:00:09]}  Be4 {[%clk 0:00:09]} 100. Kd7 {[%clk 0:00:09]}  Kb7 {[%clk 0:00:08]} 101. Kd6 {[%clk 0:00:09]}  Bf3 {[%clk 0:00:07]} 102. Nd5 {[%clk 0:00:09]}  Kb8 {[%clk 0:00:05]} 103. c6 {[%clk 0:00:09]}  Bg4 {[%clk 0:00:05]} 104. Nb4 {[%clk 0:00:08]}  Bc8 {[%clk 0:00:05]} 105. Kc5 {[%clk 0:00:06]}  Ka8 {[%clk 0:00:05]} 106. Nd5 {[%clk 0:00:06]}  Kb8 {[%clk 0:00:05]} 107. Ne7 {[%clk 0:00:05]}  Ba6 {[%clk 0:00:05]} 108. Kd6 {[%clk 0:00:05]}  Ka8 {[%clk 0:00:05]} 109. Kc7 {[%clk 0:00:04]}  Bc8 {[%clk 0:00:04]} 110. b7+ {[%clk 0:00:04]}  Ka7 {[%clk 0:00:05]} 111. b8=Q+ {[%clk 0:00:04]}  Ka6 {[%clk 0:00:05]} 112. Qb6# {[%clk 0:00:05]} 1-0


[Site "https://www.chess.com"]

[Event "Titled Tuesday Blitz August 08 Late 2023"]
[White "Pert, Richard G"]
[Black "KrokerGuy"]
[WhiteFideId "404748"]
[WhiteElo "2568"]
[BlackElo "2458"]
[Result "1-0"]
[Round "11"]
[TimeControl "180+1"]
[Date "2023.08.08"]
[WhiteClock "0:00:28"]
[BlackClock "0:00:00"]
[Board "52"]

1. d4 {[%clk 0:03:00]}  d5 {[%clk 0:03:00]} 2. Nc3 {[%clk 0:03:01]}  Nf6 {[%clk 0:02:59]} 3. e4 {[%clk 0:03:01]}  Nxe4 {[%clk 0:02:51]} 4. Nxe4 {[%clk 0:03:00]}  dxe4 {[%clk 0:02:52]} 5. Bc4 {[%clk 0:03:00]}  Bf5 {[%clk 0:02:50]} 6. g4 {[%clk 0:02:58]}  Bg6 {[%clk 0:02:48]} 7. Ne2 {[%clk 0:02:56]}  e5 {[%clk 0:02:35]} 8. c3 {[%clk 0:02:44]}  exd4 {[%clk 0:02:23]} 9. h4 {[%clk 0:02:33]}  d3 {[%clk 0:02:07]} 10. Nf4 {[%clk 0:02:12]}  h6 {[%clk 0:01:36]} 11. Nxg6 {[%clk 0:02:12]}  fxg6 {[%clk 0:01:37]} 12. Qb3 {[%clk 0:02:06]}  Qc8 {[%clk 0:01:12]} 13. Bf7+ {[%clk 0:02:02]}  Kd8 {[%clk 0:01:13]} 14. Qd5+ {[%clk 0:01:42]}  Bd6 {[%clk 0:01:12]} 15. Bf4 {[%clk 0:01:23]}  Nc6 {[%clk 0:00:34]} 16. Be6 {[%clk 0:01:16]}  Qb8 {[%clk 0:00:21]} 17. O-O-O {[%clk 0:01:09]}  Ne7 {[%clk 0:00:17]} 18. Qxe4 {[%clk 0:01:07]}  Rf8 {[%clk 0:00:08]} 19. Rxd3 {[%clk 0:01:06]}  Ke8 {[%clk 0:00:06]} 20. Be5 {[%clk 0:00:53]}  Bxe5 {[%clk 0:00:04]} 21. Qxe5 {[%clk 0:00:53]}  Rf6 {[%clk 0:00:04]} 22. Re1 {[%clk 0:00:51]}  c6 {[%clk 0:00:02]} 23. Bd7+ {[%clk 0:00:47]}  Kf7 {[%clk 0:00:03]} 24. Qxe7+ {[%clk 0:00:46]}  Kg8 {[%clk 0:00:03]} 25. Be6+ {[%clk 0:00:32]}  Kh7 {[%clk 0:00:03]} 26. Rd7 {[%clk 0:00:32]}  Qf4+ {[%clk 0:00:00]} 27. Kb1 {[%clk 0:00:28]} 1-0


[Site "https://www.chess.com"]